[Event "Titled Tuesday Blitz November 01 Early 2022"]
[White "Kosakowski, Jakub"]
[Black "Barria Zuniga, Daniel"]
[WhiteFideId "1185080"]
[BlackFideId "3400816"]
[WhiteElo "2463"]
[BlackElo "2414"]
[Result "1-0"]
[Round "11"]
[TimeControl "180+1"]
[Date "2022.11.02"]
[WhiteClock "0:00:09"]
[BlackClock "0:00:02"]

1. e4 {[%clk 0:02:59]}  c5 {[%clk 0:02:54]} 2. c3 {[%clk 0:02:59]}  Nf6 {[%clk 0:02:51]} 3. e5 {[%clk 0:02:59]}  Nd5 {[%clk 0:02:50]} 4. Nf3 {[%clk 0:02:59]}  d6 {[%clk 0:02:48]} 5. exd6 {[%clk 0:02:51]}  Qxd6 {[%clk 0:02:46]} 6. Na3 {[%clk 0:02:40]}  Nc6 {[%clk 0:02:40]} 7. d4 {[%clk 0:02:38]}  Bg4 {[%clk 0:02:22]} 8. Nb5 {[%clk 0:02:29]}  Qe6+ {[%clk 0:02:14]} 9. Be3 {[%clk 0:01:59]}  a6 {[%clk 0:02:09]} 10. c4 {[%clk 0:01:27]}  axb5 {[%clk 0:02:05]} 11. cxd5 {[%clk 0:01:28]}  Qxd5 {[%clk 0:02:05]} 12. dxc5 {[%clk 0:01:28]}  Bxf3 {[%clk 0:01:54]} 13. Qxf3 {[%clk 0:01:23]}  Qxf3 {[%clk 0:01:41]} 14. gxf3 {[%clk 0:01:23]}  b4 {[%clk 0:01:39]} 15. Bb5 {[%clk 0:01:17]}  e6 {[%clk 0:01:33]} 16. Ke2 {[%clk 0:01:14]}  Ra5 {[%clk 0:01:14]} 17. Bxc6+ {[%clk 0:00:52]}  bxc6 {[%clk 0:01:15]} 18. Rhc1 {[%clk 0:00:52]}  Kd7 {[%clk 0:01:05]} 19. Rc4 {[%clk 0:00:49]}  e5 {[%clk 0:00:52]} 20. f4 {[%clk 0:00:41]}  exf4 {[%clk 0:00:45]} 21. Rd1+ {[%clk 0:00:41]}  Kc8 {[%clk 0:00:40]} 22. Rxf4 {[%clk 0:00:37]}  f6 {[%clk 0:00:23]} 23. Rxb4 {[%clk 0:00:27]}  Bxc5 {[%clk 0:00:22]} 24. Rc4 {[%clk 0:00:23]}  Bxe3 {[%clk 0:00:20]} 25. fxe3 {[%clk 0:00:23]}  Kc7 {[%clk 0:00:18]} 26. Rdc1 {[%clk 0:00:23]}  Ra6 {[%clk 0:00:16]} 27. a4 {[%clk 0:00:23]}  Rb8 {[%clk 0:00:15]} 28. R1c2 {[%clk 0:00:23]}  Rab6 {[%clk 0:00:10]} 29. b4 {[%clk 0:00:20]}  Kd7 {[%clk 0:00:07]} 30. Rb2 {[%clk 0:00:17]}  Kd6 {[%clk 0:00:06]} 31. Kd3 {[%clk 0:00:17]}  f5 {[%clk 0:00:05]} 32. Kc3 {[%clk 0:00:17]}  g6 {[%clk 0:00:05]} 33. a5 {[%clk 0:00:17]}  Rb5 {[%clk 0:00:05]} 34. Rd2+ {[%clk 0:00:17]}  Ke6 {[%clk 0:00:05]} 35. Rxc6+ {[%clk 0:00:16]}  Ke5 {[%clk 0:00:05]} 36. Rd4 {[%clk 0:00:16]}  Re8 {[%clk 0:00:01]} 37. a6 {[%clk 0:00:14]}  Reb8 {[%clk 0:00:02]} 38. a7 {[%clk 0:00:08]}  Ra8 {[%clk 0:00:02]} 39. Rd7 {[%clk 0:00:09]} 1-0


[Site "https://www.chess.com"]

[Event "Titled Tuesday Blitz November 01 Early 2022"]
[White "Kowalczyk, Pawel"]
[Black "Turutin, Alexander"]
[WhiteFideId "1130641"]
[BlackFideId "4180623"]
[WhiteElo "2324"]
[BlackElo "2402"]
[Result "1-0"]
[Round "11"]
[TimeControl "180+1"]
[Date "2022.11.01"]
[WhiteClock "0:02:15"]
[BlackClock "0:00:41"]

1. e4 {[%clk 0:03:00]}  c6 {[%clk 0:02:59]} 2. Nc3 {[%clk 0:03:00]}  d5 {[%clk 0:02:59]} 3. Nf3 {[%clk 0:03:00]}  Bg4 {[%clk 0:02:55]} 4. h3 {[%clk 0:02:57]}  Bxf3 {[%clk 0:02:54]} 5. gxf3 {[%clk 0:02:57]}  e6 {[%clk 0:01:55]} 6. d4 {[%clk 0:02:56]}  Nd7 {[%clk 0:01:52]} 7. h4 {[%clk 0:02:56]}  Ngf6 {[%clk 0:01:49]} 8. h5 {[%clk 0:02:55]}  Bb4 {[%clk 0:01:37]} 9. e5 {[%clk 0:02:54]}  Ng8 {[%clk 0:01:37]} 10. a3 {[%clk 0:02:49]}  Bxc3+ {[%clk 0:01:31]} 11. bxc3 {[%clk 0:02:50]}  Ne7 {[%clk 0:01:30]} 12. f4 {[%clk 0:02:46]}  Nf5 {[%clk 0:01:30]} 13. Bd3 {[%clk 0:02:44]}  O-O {[%clk 0:01:30]} 14. Qg4 {[%clk 0:02:41]}  f6 {[%clk 0:01:26]} 15. Bxf5 {[%clk 0:02:30]}  exf5 {[%clk 0:01:25]} 16. Qxf5 {[%clk 0:02:31]}  fxe5 {[%clk 0:01:25]} 17. Qe6+ {[%clk 0:02:31]}  Kh8 {[%clk 0:01:26]} 18. fxe5 {[%clk 0:02:30]}  c5 {[%clk 0:01:06]} 19. h6 {[%clk 0:02:29]}  g6 {[%clk 0:00:52]} 20. Be3 {[%clk 0:02:23]}  Qc7 {[%clk 0:00:41]} 21. Qe7 {[%clk 0:02:15]} 1-0


[Site "https://www.chess.com"]

[Event "Titled Tuesday Blitz November 01 Early 2022"]
[White "Kvaloy, Aksel Bu"]
[Black "Melikhov, Evgeny V."]
[WhiteFideId "1528815"]
[BlackFideId "4122046"]
[WhiteElo "2178"]
[BlackElo "2169"]
[Result "1/2-1/2"]
[Round "11"]
[TimeControl "180+1"]
[Date "2022.11.02"]
[WhiteClock "0:00:04"]
[BlackClock "0:00:07"]

1. d4 {[%clk 0:02:59]}  Nf6 {[%clk 0:02:59]} 2. c4 {[%clk 0:02:57]}  e6 {[%clk 0:02:59]} 3. g3 {[%clk 0:02:54]}  d5 {[%clk 0:02:59]} 4. Nf3 {[%clk 0:02:53]}  dxc4 {[%clk 0:02:59]} 5. Bg2 {[%clk 0:02:40]}  Nc6 {[%clk 0:02:59]} 6. O-O {[%clk 0:02:29]}  Rb8 {[%clk 0:02:59]} 7. a4 {[%clk 0:02:06]}  a6 {[%clk 0:02:58]} 8. a5 {[%clk 0:02:06]}  Bd6 {[%clk 0:02:58]} 9. e3 {[%clk 0:02:01]}  O-O {[%clk 0:02:57]} 10. Nfd2 {[%clk 0:01:56]}  e5 {[%clk 0:02:47]} 11. d5 {[%clk 0:01:53]}  Ne7 {[%clk 0:02:46]} 12. Nxc4 {[%clk 0:01:42]}  Ng6 {[%clk 0:02:43]} 13. Nc3 {[%clk 0:01:40]}  h6 {[%clk 0:02:42]} 14. e4 {[%clk 0:01:34]}  Nh7 {[%clk 0:02:42]} 15. f4 {[%clk 0:01:32]}  f5 {[%clk 0:02:36]} 16. fxe5 {[%clk 0:01:29]}  Nxe5 {[%clk 0:02:35]} 17. Nxd6 {[%clk 0:01:28]}  cxd6 {[%clk 0:02:35]} 18. Bf4 {[%clk 0:01:23]}  Qe7 {[%clk 0:02:12]} 19. Qd4 {[%clk 0:01:00]}  Ng6 {[%clk 0:01:39]} 20. Rae1 {[%clk 0:00:55]}  Nxf4 {[%clk 0:01:38]} 21. Rxf4 {[%clk 0:00:56]}  fxe4 {[%clk 0:01:09]} 22. Rexe4 {[%clk 0:00:43]}  Rxf4 {[%clk 0:01:08]} 23. Rxf4 {[%clk 0:00:40]}  Nf6 {[%clk 0:01:04]} 24. Ne4 {[%clk 0:00:37]}  Nxe4 {[%clk 0:00:58]} 25. Qxe4 {[%clk 0:00:38]}  Qxe4 {[%clk 0:00:57]} 26. Rxe4 {[%clk 0:00:39]}  Kf7 {[%clk 0:00:47]} 27. Rb4 {[%clk 0:00:36]}  Bd7 {[%clk 0:00:44]} 28. Bf1 {[%clk 0:00:34]}  Ke7 {[%clk 0:00:35]} 29. Bxa6 {[%clk 0:00:25]}  Ra8 {[%clk 0:00:33]} 30. Bb5 {[%clk 0:00:25]}  Bf5 {[%clk 0:00:28]} 31. Bc4 {[%clk 0:00:16]}  Bc8 {[%clk 0:00:23]} 32. Rb5 {[%clk 0:00:16]}  Kd7 {[%clk 0:00:20]} 33. b4 {[%clk 0:00:15]}  Kc7 {[%clk 0:00:20]} 34. Rb6 {[%clk 0:00:12]}  Bd7 {[%clk 0:00:20]} 35. Kf2 {[%clk 0:00:06]}  Re8 {[%clk 0:00:19]} 36. Bb5 {[%clk 0:00:05]}  Bxb5 {[%clk 0:00:18]} 37. Rxb5 {[%clk 0:00:06]}  Re4 {[%clk 0:00:18]} 38. Kf3 {[%clk 0:00:05]}  Rd4 {[%clk 0:00:17]} 39. Ke3 {[%clk 0:00:06]}  Rd1 {[%clk 0:00:17]} 40. Kf4 {[%clk 0:00:03]}  g6 {[%clk 0:00:17]} 41. h4 {[%clk 0:00:03]}  Rd4+ {[%clk 0:00:16]} 42. Kf3 {[%clk 0:00:03]}  h5 {[%clk 0:00:14]} 43. Ke3 {[%clk 0:00:03]}  Rc4 {[%clk 0:00:15]} 44. Kf3 {[%clk 0:00:03]}  Rg4 {[%clk 0:00:12]} 45. Kf2 {[%clk 0:00:03]}  g5 {[%clk 0:00:09]} 46. hxg5 {[%clk 0:00:02]}  Rxg5 {[%clk 0:00:09]} 47. Kf3 {[%clk 0:00:03]}  Rg4 {[%clk 0:00:08]} 48. Kf2 {[%clk 0:00:02]}  Rd4 {[%clk 0:00:08]} 49. Kg2 {[%clk 0:00:02]}  Rg4 {[%clk 0:00:07]} 50. Kh3 {[%clk 0:00:03]}  Rd4 {[%clk 0:00:07]} 51. Kh2 {[%clk 0:00:03]}  Rd3 {[%clk 0:00:07]} 52. Kh3 {[%clk 0:00:03]}  Rd4 {[%clk 0:00:07]} 53. Kh2 {[%clk 0:00:04]}  Rg4 {[%clk 0:00:07]} 54. Kh3 {[%clk 0:00:04]}  Rd4 {[%clk 0:00:07]} 1/2-1/2


[Site "https://www.chess.com"]

[Event "Titled Tuesday Blitz November 01 Early 2022"]
[White "Luxama, Jacques Muller"]
[Black "Szente Varga, Fruzsina"]
[WhiteFideId "11900113"]
[BlackFideId "712264"]
[WhiteElo "1931"]
[BlackElo "1994"]
[Result "1-0"]
[Round "11"]
[TimeControl "180+1"]
[Date "2022.11.02"]
[WhiteClock "0:00:05"]
[BlackClock "0:00:01"]

1. d4 {[%clk 0:02:28]}  Nf6 {[%clk 0:02:59]} 2. c4 {[%clk 0:02:28]}  g6 {[%clk 0:03:00]} 3. Nc3 {[%clk 0:02:27]}  Bg7 {[%clk 0:03:01]} 4. e4 {[%clk 0:02:27]}  d6 {[%clk 0:03:01]} 5. Nf3 {[%clk 0:02:27]}  O-O {[%clk 0:03:02]} 6. Be2 {[%clk 0:02:27]}  Bg4 {[%clk 0:03:03]} 7. O-O {[%clk 0:02:27]}  Nbd7 {[%clk 0:03:01]} 8. Re1 {[%clk 0:02:24]}  e5 {[%clk 0:03:01]} 9. d5 {[%clk 0:02:24]}  Nc5 {[%clk 0:02:58]} 10. h3 {[%clk 0:02:20]}  Bd7 {[%clk 0:02:58]} 11. Nd2 {[%clk 0:02:18]}  a5 {[%clk 0:02:50]} 12. b3 {[%clk 0:02:18]}  Ne8 {[%clk 0:02:48]} 13. a3 {[%clk 0:02:10]}  f5 {[%clk 0:02:48]} 14. f3 {[%clk 0:02:04]}  f4 {[%clk 0:02:46]} 15. Bb2 {[%clk 0:02:00]}  Nf6 {[%clk 0:02:39]} 16. b4 {[%clk 0:02:00]}  Na6 {[%clk 0:02:37]} 17. Qb3 {[%clk 0:01:48]}  Nh5 {[%clk 0:02:35]} 18. c5 {[%clk 0:01:47]}  Ng3 {[%clk 0:02:26]} 19. Bxa6 {[%clk 0:01:45]}  bxa6 {[%clk 0:02:22]} 20. Nc4 {[%clk 0:01:42]}  axb4 {[%clk 0:02:21]} 21. axb4 {[%clk 0:01:42]}  Qf6 {[%clk 0:02:14]} 22. Ne2 {[%clk 0:01:28]}  h5 {[%clk 0:01:46]} 23. Nxg3 {[%clk 0:01:26]}  fxg3 {[%clk 0:01:47]} 24. cxd6 {[%clk 0:01:20]}  cxd6 {[%clk 0:01:46]} 25. Nb6 {[%clk 0:01:18]}  Bb5 {[%clk 0:00:59]} 26. Nxa8 {[%clk 0:01:13]}  Rxa8 {[%clk 0:01:00]} 27. Bc1 {[%clk 0:01:07]}  g5 {[%clk 0:00:52]} 28. Qe3 {[%clk 0:00:57]}  g4 {[%clk 0:00:24]} 29. fxg4 {[%clk 0:00:52]}  Rf8 {[%clk 0:00:22]} 30. Qxg3 {[%clk 0:00:47]}  hxg4 {[%clk 0:00:20]} 31. hxg4 {[%clk 0:00:40]}  Qg6 {[%clk 0:00:20]} 32. g5 {[%clk 0:00:38]}  Qh5 {[%clk 0:00:18]} 33. Be3 {[%clk 0:00:36]}  Qg6 {[%clk 0:00:14]} 34. Bf2 {[%clk 0:00:35]}  Rc8 {[%clk 0:00:13]} 35. Rac1 {[%clk 0:00:33]}  Rxc1 {[%clk 0:00:13]} 36. Rxc1 {[%clk 0:00:33]}  Qxe4 {[%clk 0:00:14]} 37. Rc8+ {[%clk 0:00:32]}  Kf7 {[%clk 0:00:13]} 38. g6+ {[%clk 0:00:29]}  Qxg6 {[%clk 0:00:13]} 39. Rc7+ {[%clk 0:00:27]}  Kf6 {[%clk 0:00:13]} 40. Qh4+ {[%clk 0:00:24]}  Kf5 {[%clk 0:00:11]} 41. g4+ {[%clk 0:00:13]}  Ke4 {[%clk 0:00:10]} 42. g5+ {[%clk 0:00:12]}  Kxd5 {[%clk 0:00:10]} 43. Qg4 {[%clk 0:00:09]}  Qb1+ {[%clk 0:00:10]} 44. Kh2 {[%clk 0:00:08]}  Qh7+ {[%clk 0:00:08]} 45. Bh4 {[%clk 0:00:07]}  Qg6 {[%clk 0:00:05]} 46. Qg2+ {[%clk 0:00:06]}  Ke6 {[%clk 0:00:05]} 47. Qg4+ {[%clk 0:00:06]}  Kd5 {[%clk 0:00:06]} 48. Qf3+ {[%clk 0:00:05]}  e4 {[%clk 0:00:05]} 49. Qf7+ {[%clk 0:00:04]}  Qxf7 {[%clk 0:00:04]} 50. Rxf7 {[%clk 0:00:05]}  Be5+ {[%clk 0:00:04]} 51. Kg2 {[%clk 0:00:05]}  Ke6 {[%clk 0:00:05]} 52. g6 {[%clk 0:00:05]}  d5 {[%clk 0:00:04]} 53. Re7+ {[%clk 0:00:05]}  Kf5 {[%clk 0:00:04]} 54. Rxe5+ {[%clk 0:00:05]}  Kxe5 {[%clk 0:00:02]} 55. g7 {[%clk 0:00:05]}  e3 {[%clk 0:00:03]} 56. g8=Q {[%clk 0:00:04]}  e2 {[%clk 0:00:04]} 57. Qg5+ {[%clk 0:00:03]}  Kd4 {[%clk 0:00:04]} 58. Be1 {[%clk 0:00:03]}  Ke4 {[%clk 0:00:03]} 59. Qd2 {[%clk 0:00:03]}  d4 {[%clk 0:00:03]} 60. Kf2 {[%clk 0:00:03]}  d3 {[%clk 0:00:04]} 61. Qe3+ {[%clk 0:00:04]}  Kd5 {[%clk 0:00:04]} 62. Bd2 {[%clk 0:00:04]}  Kc4 {[%clk 0:00:04]} 63. Ke1 {[%clk 0:00:04]}  Kb3 {[%clk 0:00:04]} 64. Qd4 {[%clk 0:00:04]}  Bc4 {[%clk 0:00:01]} 65. Qc3+ {[%clk 0:00:04]}  Ka4 {[%clk 0:00:01]} 66. Qxc4 {[%clk 0:00:05]} 1-0


[Site "https://www.chess.com"]

[Event "Titled Tuesday Blitz November 01 Early 2022"]
[White "Malyi, Viacheslav"]
[Black "Mekhitarian, Krikor Sevag"]
[WhiteFideId "14123983"]
[BlackFideId "2107660"]
[WhiteElo "2291"]
[BlackElo "2614"]
[Result "0-1"]
[Round "11"]
[TimeControl "180+1"]
[Date "2022.11.02"]
[WhiteClock "0:00:48"]
[BlackClock "0:00:31"]

1. e4 {[%clk 0:03:00]}  c5 {[%clk 0:02:54]} 2. Nf3 {[%clk 0:03:00]}  e6 {[%clk 0:02:48]} 3. g3 {[%clk 0:02:59]}  Nc6 {[%clk 0:02:45]} 4. Bg2 {[%clk 0:02:59]}  h5 {[%clk 0:02:43]} 5. h4 {[%clk 0:02:58]}  Nf6 {[%clk 0:02:42]} 6. d3 {[%clk 0:02:57]}  Ng4 {[%clk 0:02:43]} 7. O-O {[%clk 0:02:56]}  f6 {[%clk 0:02:36]} 8. d4 {[%clk 0:02:51]}  cxd4 {[%clk 0:02:36]} 9. Nxd4 {[%clk 0:02:52]}  Bc5 {[%clk 0:02:36]} 10. c3 {[%clk 0:02:46]}  Qb6 {[%clk 0:02:31]} 11. Bf3 {[%clk 0:02:33]}  Nxd4 {[%clk 0:02:19]} 12. cxd4 {[%clk 0:02:31]}  Bxd4 {[%clk 0:02:20]} 13. Bxg4 {[%clk 0:02:31]}  hxg4 {[%clk 0:02:20]} 14. Qxg4 {[%clk 0:02:32]}  Kf7 {[%clk 0:02:18]} 15. Nc3 {[%clk 0:02:28]}  d5 {[%clk 0:02:01]} 16. h5 {[%clk 0:02:24]}  dxe4 {[%clk 0:01:11]} 17. Qg6+ {[%clk 0:02:21]}  Kf8 {[%clk 0:01:09]} 18. h6 {[%clk 0:02:07]}  f5 {[%clk 0:01:03]} 19. Bf4 {[%clk 0:01:38]}  Bd7 {[%clk 0:00:53]} 20. Rad1 {[%clk 0:01:12]}  Be8 {[%clk 0:00:53]} 21. hxg7+ {[%clk 0:01:11]}  Bxg7 {[%clk 0:00:51]} 22. Bd6+ {[%clk 0:01:11]}  Qxd6 {[%clk 0:00:48]} 23. Qxe8+ {[%clk 0:01:09]}  Rxe8 {[%clk 0:00:39]} 24. Rxd6 {[%clk 0:01:10]}  Ke7 {[%clk 0:00:40]} 25. Rfd1 {[%clk 0:01:08]}  Rd8 {[%clk 0:00:41]} 26. Rxd8 {[%clk 0:00:53]}  Rxd8 {[%clk 0:00:41]} 27. Rxd8 {[%clk 0:00:53]}  Kxd8 {[%clk 0:00:42]} 28. Nd1 {[%clk 0:00:54]}  Bd4 {[%clk 0:00:41]} 29. Kf1 {[%clk 0:00:54]}  Kd7 {[%clk 0:00:40]} 30. Ke2 {[%clk 0:00:55]}  Kd6 {[%clk 0:00:40]} 31. f3 {[%clk 0:00:56]}  exf3+ {[%clk 0:00:38]} 32. Kxf3 {[%clk 0:00:57]}  Kd5 {[%clk 0:00:38]} 33. Kf4 {[%clk 0:00:53]}  b5 {[%clk 0:00:37]} 34. b3 {[%clk 0:00:53]}  a5 {[%clk 0:00:35]} 35. a4 {[%clk 0:00:53]}  b4 {[%clk 0:00:35]} 36. Kf3 {[%clk 0:00:51]}  Ke5 {[%clk 0:00:35]} 37. Ne3 {[%clk 0:00:50]}  Bxe3 {[%clk 0:00:35]} 38. Kxe3 {[%clk 0:00:51]}  Kd5 {[%clk 0:00:34]} 39. Kf4 {[%clk 0:00:51]}  Kd4 {[%clk 0:00:34]} 40. Kg5 {[%clk 0:00:49]}  Ke4 {[%clk 0:00:30]} 41. Kf6 {[%clk 0:00:49]}  e5 {[%clk 0:00:31]} 42. Kg5 {[%clk 0:00:47]}  f4 {[%clk 0:00:31]} 43. gxf4 {[%clk 0:00:48]}  exf4 {[%clk 0:00:31]} 0-1


[Site "https://www.chess.com"]

[Event "Titled Tuesday Blitz November 01 Early 2022"]
[White "Manukian, Artak"]
[Black "Belozerov, Andrei"]
[WhiteFideId "13301373"]
[BlackFideId "4120213"]
[WhiteElo "2485"]
[BlackElo "2360"]
[Result "1/2-1/2"]
[Round "11"]
[TimeControl "180+1"]
[Date "2022.11.02"]
[WhiteClock "0:01:10"]
[BlackClock "0:00:59"]

1. e4 {[%clk 0:03:00]}  c5 {[%clk 0:02:56]} 2. Nf3 {[%clk 0:03:00]}  d6 {[%clk 0:02:56]} 3. Bb5+ {[%clk 0:03:00]}  Bd7 {[%clk 0:02:53]} 4. Bxd7+ {[%clk 0:03:00]}  Qxd7 {[%clk 0:02:54]} 5. c4 {[%clk 0:03:00]}  e5 {[%clk 0:02:53]} 6. Nc3 {[%clk 0:03:00]}  g6 {[%clk 0:02:53]} 7. d3 {[%clk 0:03:00]}  Bg7 {[%clk 0:02:53]} 8. Bg5 {[%clk 0:02:58]}  Ne7 {[%clk 0:02:53]} 9. Nd5 {[%clk 0:02:58]}  Nxd5 {[%clk 0:02:53]} 10. cxd5 {[%clk 0:02:58]}  O-O {[%clk 0:02:53]} 11. O-O {[%clk 0:02:58]}  f5 {[%clk 0:02:51]} 12. Nd2 {[%clk 0:02:56]}  f4 {[%clk 0:02:50]} 13. f3 {[%clk 0:02:56]}  Na6 {[%clk 0:02:45]} 14. a4 {[%clk 0:02:55]}  Nb4 {[%clk 0:02:43]} 15. Nc4 {[%clk 0:02:54]}  Bf6 {[%clk 0:02:37]} 16. Bxf6 {[%clk 0:02:53]}  Rxf6 {[%clk 0:02:38]} 17. Na3 {[%clk 0:02:45]}  Kf7 {[%clk 0:02:38]} 18. Nc2 {[%clk 0:02:44]}  a5 {[%clk 0:02:37]} 19. Nxb4 {[%clk 0:02:43]}  axb4 {[%clk 0:02:38]} 20. b3 {[%clk 0:02:43]}  b6 {[%clk 0:02:37]} 21. Qc2 {[%clk 0:02:41]}  g5 {[%clk 0:02:38]} 22. h3 {[%clk 0:02:38]}  h5 {[%clk 0:02:38]} 23. Kf2 {[%clk 0:02:39]}  Rg6 {[%clk 0:02:32]} 24. Rh1 {[%clk 0:02:34]}  Kf6 {[%clk 0:02:28]} 25. Ke1 {[%clk 0:02:21]}  Ra5 {[%clk 0:02:20]} 26. Kd2 {[%clk 0:02:12]}  Ke7 {[%clk 0:02:20]} 27. d4 {[%clk 0:02:05]}  cxd4 {[%clk 0:02:10]} 28. Qc4 {[%clk 0:02:03]}  Rg8 {[%clk 0:02:04]} 29. Qxb4 {[%clk 0:01:56]}  Rc8 {[%clk 0:02:05]} 30. Rac1 {[%clk 0:01:52]}  Rac5 {[%clk 0:02:01]} 31. Qxb6 {[%clk 0:01:46]}  Rc3 {[%clk 0:01:56]} 32. a5 {[%clk 0:01:46]}  R8c5 {[%clk 0:01:47]} 33. Rxc3 {[%clk 0:01:36]}  Rxc3 {[%clk 0:01:32]} 34. Rc1 {[%clk 0:01:35]}  Qc8 {[%clk 0:01:25]} 35. Rxc3 {[%clk 0:01:33]}  Qxc3+ {[%clk 0:01:24]} 36. Kd1 {[%clk 0:01:30]}  d3 {[%clk 0:01:25]} 37. Qb7+ {[%clk 0:01:21]}  Kf6 {[%clk 0:01:23]} 38. Qc6 {[%clk 0:01:18]}  Qxb3+ {[%clk 0:01:08]} 39. Kd2 {[%clk 0:01:16]}  Qb2+ {[%clk 0:01:01]} 40. Kxd3 {[%clk 0:01:15]}  Qb3+ {[%clk 0:01:01]} 41. Kd2 {[%clk 0:01:09]}  Qb2+ {[%clk 0:00:59]} 42. Kd3 {[%clk 0:01:09]}  Qb3+ {[%clk 0:00:58]} 43. Kd2 {[%clk 0:01:10]}  Qb2+ {[%clk 0:00:59]} 44. Kd3 {[%clk 0:01:10]} 1/2-1/2


[Site "https://www.chess.com"]

[Event "Titled Tuesday Blitz November 01 Early 2022"]
[White "Matinian, Nikita"]
[Black "Ilkhomi, Jaloliddin"]
[WhiteFideId "24129100"]
[BlackFideId "14700948"]
[WhiteElo "2422"]
[BlackElo "2045"]
[Result "1-0"]
[Round "11"]
[TimeControl "180+1"]
[Date "2022.11.02"]
[WhiteClock "0:00:11"]
[BlackClock "0:00:12"]

1. e4 {[%clk 0:03:00]}  e6 {[%clk 0:02:58]} 2. d4 {[%clk 0:03:00]}  d5 {[%clk 0:02:59]} 3. Nc3 {[%clk 0:03:01]}  Bb4 {[%clk 0:02:59]} 4. Ne2 {[%clk 0:03:01]}  dxe4 {[%clk 0:02:58]} 5. a3 {[%clk 0:03:02]}  Be7 {[%clk 0:02:59]} 6. Nxe4 {[%clk 0:03:01]}  Nf6 {[%clk 0:03:00]} 7. Nxf6+ {[%clk 0:03:01]}  Bxf6 {[%clk 0:03:00]} 8. Be3 {[%clk 0:03:02]}  Nd7 {[%clk 0:02:59]} 9. Nf4 {[%clk 0:03:02]}  b6 {[%clk 0:02:59]} 10. Qg4 {[%clk 0:02:57]}  Bb7 {[%clk 0:02:54]} 11. O-O-O {[%clk 0:02:56]}  Qe7 {[%clk 0:02:53]} 12. Bc4 {[%clk 0:02:43]}  O-O-O {[%clk 0:02:50]} 13. Rhe1 {[%clk 0:02:43]}  Kb8 {[%clk 0:02:39]} 14. Nh5 {[%clk 0:02:40]}  Qd6 {[%clk 0:02:05]} 15. Bb3 {[%clk 0:02:27]}  Rhe8 {[%clk 0:01:56]} 16. Bf4 {[%clk 0:02:26]}  Qc6 {[%clk 0:01:56]} 17. d5 {[%clk 0:02:24]}  exd5 {[%clk 0:01:53]} 18. Rxe8 {[%clk 0:02:24]}  Rxe8 {[%clk 0:01:54]} 19. Bxd5 {[%clk 0:02:24]}  Qb5 {[%clk 0:01:40]} 20. Bb3 {[%clk 0:01:45]}  Ne5 {[%clk 0:01:35]} 21. Qg3 {[%clk 0:01:38]}  Nd3+ {[%clk 0:00:58]} 22. Qxd3 {[%clk 0:01:35]}  Qxh5 {[%clk 0:00:55]} 23. Bxc7+ {[%clk 0:01:35]}  Ka8 {[%clk 0:00:52]} 24. f3 {[%clk 0:01:27]}  Qg5+ {[%clk 0:00:47]} 25. Kb1 {[%clk 0:01:21]}  Qxg2 {[%clk 0:00:42]} 26. Bxf7 {[%clk 0:01:20]}  Rc8 {[%clk 0:00:35]} 27. Qd7 {[%clk 0:01:15]}  Qxf3 {[%clk 0:00:20]} 28. Qxc8+ {[%clk 0:01:15]}  Bxc8 {[%clk 0:00:20]} 29. Bd5+ {[%clk 0:01:15]}  Qxd5 {[%clk 0:00:19]} 30. Rxd5 {[%clk 0:01:16]}  Kb7 {[%clk 0:00:20]} 31. Bg3 {[%clk 0:01:15]}  Be6 {[%clk 0:00:20]} 32. Rd6 {[%clk 0:01:14]}  Bf5 {[%clk 0:00:20]} 33. h4 {[%clk 0:01:09]}  h5 {[%clk 0:00:19]} 34. a4 {[%clk 0:01:08]}  Be7 {[%clk 0:00:14]} 35. Rd2 {[%clk 0:01:08]}  g6 {[%clk 0:00:14]} 36. b3 {[%clk 0:01:03]}  Bf6 {[%clk 0:00:13]} 37. Ka2 {[%clk 0:01:00]}  Bc3 {[%clk 0:00:13]} 38. Re2 {[%clk 0:00:58]}  Bf6 {[%clk 0:00:14]} 39. c4 {[%clk 0:00:53]}  a6 {[%clk 0:00:15]} 40. Rd2 {[%clk 0:00:46]}  Be7 {[%clk 0:00:15]} 41. Rh2 {[%clk 0:00:37]}  Kc6 {[%clk 0:00:14]} 42. Be5 {[%clk 0:00:36]}  b5 {[%clk 0:00:14]} 43. cxb5+ {[%clk 0:00:36]}  axb5 {[%clk 0:00:15]} 44. a5 {[%clk 0:00:36]}  Bb4 {[%clk 0:00:11]} 45. a6 {[%clk 0:00:29]}  Kb6 {[%clk 0:00:11]} 46. Bd4+ {[%clk 0:00:22]}  Kxa6 {[%clk 0:00:12]} 47. Re2 {[%clk 0:00:23]}  Kb7 {[%clk 0:00:11]} 48. Re8 {[%clk 0:00:19]}  Kc6 {[%clk 0:00:12]} 49. Bf6 {[%clk 0:00:19]}  Bd6 {[%clk 0:00:10]} 50. Bg5 {[%clk 0:00:16]}  Kd7 {[%clk 0:00:10]} 51. Rd8+ {[%clk 0:00:16]}  Kc6 {[%clk 0:00:10]} 52. Kb2 {[%clk 0:00:16]}  b4 {[%clk 0:00:09]} 53. Ka2 {[%clk 0:00:13]}  Be5 {[%clk 0:00:07]} 54. Rd2 {[%clk 0:00:11]}  Bc3 {[%clk 0:00:07]} 55. Re2 {[%clk 0:00:10]}  Kb5 {[%clk 0:00:08]} 56. Bd2 {[%clk 0:00:09]}  Bf6 {[%clk 0:00:07]} 57. Rh2 {[%clk 0:00:09]}  Be5 {[%clk 0:00:06]} 58. Rf2 {[%clk 0:00:05]}  Bf6 {[%clk 0:00:06]} 59. Rf4 {[%clk 0:00:05]}  Bg7 {[%clk 0:00:05]} 60. Rxb4+ {[%clk 0:00:05]}  Kc5 {[%clk 0:00:06]} 61. Rf4 {[%clk 0:00:04]}  Kb5 {[%clk 0:00:05]} 62. Rf2 {[%clk 0:00:04]}  Bf6 {[%clk 0:00:05]} 63. Rh2 {[%clk 0:00:04]}  Be5 {[%clk 0:00:05]} 64. Rf2 {[%clk 0:00:04]}  Bf6 {[%clk 0:00:05]} 65. Bg5 {[%clk 0:00:04]}  Bd4 {[%clk 0:00:05]} 66. Rd2 {[%clk 0:00:04]}  Bc3 {[%clk 0:00:05]} 67. Rd5+ {[%clk 0:00:04]}  Kc6 {[%clk 0:00:05]} 68. Rd8 {[%clk 0:00:05]}  Ba5 {[%clk 0:00:06]} 69. Rf8 {[%clk 0:00:03]}  Bb4 {[%clk 0:00:06]} 70. Rf6+ {[%clk 0:00:03]}  Kb5 {[%clk 0:00:06]} 71. Be3 {[%clk 0:00:03]}  Bc3 {[%clk 0:00:05]} 72. Rb6+ {[%clk 0:00:02]}  Ka5 {[%clk 0:00:06]} 73. Ka3 {[%clk 0:00:02]}  Be4 {[%clk 0:00:01]} 74. b4+ {[%clk 0:00:03]}  Bxb4+ {[%clk 0:00:02]} 75. Rxb4 {[%clk 0:00:04]}  Bf5 {[%clk 0:00:02]} 76. Rb2 {[%clk 0:00:03]}  Ka6 {[%clk 0:00:03]} 77. Bd4 {[%clk 0:00:03]}  Ka5 {[%clk 0:00:04]} 78. Kb3 {[%clk 0:00:03]}  Kb5 {[%clk 0:00:04]} 79. Kc3+ {[%clk 0:00:04]}  Kc6 {[%clk 0:00:05]} 80. Rf2 {[%clk 0:00:04]}  Kd5 {[%clk 0:00:06]} 81. Be3 {[%clk 0:00:05]}  Ke4 {[%clk 0:00:07]} 82. Bg5 {[%clk 0:00:06]}  Bg4 {[%clk 0:00:06]} 83. Rb2 {[%clk 0:00:06]}  Kf5 {[%clk 0:00:07]} 84. Rb4 {[%clk 0:00:07]}  Bf3 {[%clk 0:00:07]} 85. Kd2 {[%clk 0:00:07]}  Be4 {[%clk 0:00:07]} 86. Ke3 {[%clk 0:00:08]}  Bd5 {[%clk 0:00:08]} 87. Rb5 {[%clk 0:00:08]}  Ke6 {[%clk 0:00:07]} 88. Kd4 {[%clk 0:00:08]}  Bf3 {[%clk 0:00:07]} 89. Re5+ {[%clk 0:00:08]}  Kd6 {[%clk 0:00:08]} 90. Bf4 {[%clk 0:00:08]}  Kd7 {[%clk 0:00:06]} 91. Rg5 {[%clk 0:00:08]}  Be4 {[%clk 0:00:06]} 92. Kxe4 {[%clk 0:00:08]}  Ke7 {[%clk 0:00:07]} 93. Rxg6 {[%clk 0:00:08]}  Kf7 {[%clk 0:00:08]} 94. Rg5 {[%clk 0:00:09]}  Kf6 {[%clk 0:00:09]} 95. Rxh5 {[%clk 0:00:09]}  Kg6 {[%clk 0:00:10]} 96. Ra5 {[%clk 0:00:10]}  Kh7 {[%clk 0:00:11]} 97. h5 {[%clk 0:00:10]}  Kg7 {[%clk 0:00:11]} 98. Kf5 {[%clk 0:00:11]}  Kg8 {[%clk 0:00:12]} 99. h6 {[%clk 0:00:11]}  Kh7 {[%clk 0:00:13]} 100. Ra7+ {[%clk 0:00:11]}  Kg8 {[%clk 0:00:13]} 101. h7+ {[%clk 0:00:11]}  Kh8 {[%clk 0:00:12]} 102. Be5# {[%clk 0:00:11]} 1-0


[Site "https://www.chess.com"]